[Event "ESTCC U65 2018"]
[Site "Walbrzych"]
[Date "2018.04.20"]
[Round "7"]
[White "Tichatschke, Wolfgang"]
[Black "Gustavsson, Bo"]
[Result "1/2-1/2"]
[ECO "B18"]
[WhiteElo "1967"]
[BlackElo "1915"]
[Annotator "NA"]
[PlyCount "31"]
[EventDate "2018.??.??"]
[EventCountry "POL"]
[SourceTitle "playchess.com"]
[Source "ChessBase"]
[SourceQuality "1"]
[WhiteTeam "Germany"]
[BlackTeam "Sweden"]
[WhiteTeamCountry "GER"]
[BlackTeamCountry "SWE"]
[TimeControl "40/5400+30:1800+30"]

1. e4 {[%emt 0:00:00]} c6 {[%emt 0:00:39]} 2. d4 {[%emt 0:00:00]} d5 {[%emt 0:00:02]} 3. Nc3 {[%emt 0:00:00]} dxe4 {[%emt 0:00:47]} 4. Nxe4 {[%emt 0:00:02]} Bf5 {[%emt 0:00:20]} 5. Ng3 {[%emt 0:00:11]} Bg6 {[%emt 0:00:19]} 6. Nf3 {[%emt 0:00:22]} Nf6 {[%emt 0:00:12]} 7. Bd3 {[%emt 0:01:27]} e6 {[%emt 0:00:23]} 8. O-O {[%emt 0:00:30]} Be7 {[%emt 0:00:18]} 9. Bg5 {[%emt 0:02:47]} Nbd7 {[%emt 0:02:58]} 10. Re1 {[%emt 0:05:14]} O-O {[%emt 0:00:33]} 11. Ne5 {[%emt 0:07:31]} Bxd3 {[%emt 0:00:47]} 12. Nxd3 {[%emt 0:02:30]} Nd5 {[%emt 0:06:40]} 13. Bxe7 {[%emt 0:02:34]} Nxe7 {[%emt 0:00:45]} 14. c3 {[%emt 0:03:42]} Nf6 $11 {[%emt 0:01:22]} 15. Qe2 {[%emt 0:01:32]} Ng6 {[%emt 0:06:21]} 16. Ne5 {[%emt 0:07:00]} 1/2-1/2

[Event "ESTCC U65 2018"]
[Site "Walbrzych"]
[Date "2018.04.20"]
[Round "7"]
[White "Ranki, Martti"]
[Black "Lindholm, Pertti"]
[Result "1/2-1/2"]
[ECO "E21"]
[WhiteElo "1942"]
[BlackElo "1624"]
[Annotator "NA"]
[PlyCount "74"]
[EventDate "2018.??.??"]
[EventCountry "POL"]
[SourceTitle "playchess.com"]
[Source "ChessBase"]
[SourceQuality "1"]
[WhiteTeam "Finland"]
[BlackTeam "Finland"]
[WhiteTeamCountry "FIN"]
[BlackTeamCountry "FIN"]
[TimeControl "40/5400+30:1800+30"]

1. d4 {[%emt 0:00:00]} Nf6 {[%emt 0:00:13]} 2. c4 {[%emt 0:00:00]} e6 {[%emt 0:00:23]} 3. Nc3 {[%emt 0:01:17]} Bb4 {[%emt 0:00:36]} 4. Nf3 {[%emt 0:02:56]} d5 {[%emt 0:01:59]} 5. a3 {[%emt 0:00:58]} Bxc3+ {[%emt 0:00:28]} 6. bxc3 {[%emt 0:00:02]} dxc4 {[%emt 0:01:53] LiveBook: 7 Games} 7. Qa4+ {[%emt 0:00:20] D38: Queen's Gambit Declined: Ragozin Defence (4 Nf3 Bb4)} (7. e3 c5 8. Bxc4 Qc7 9. Be2 O-O 10. Bb2 b6 11. c4 cxd4 12. exd4 Nbd7 13. O-O Bb7 14. Re1 Rac8 {0-1 (24) Ivanchuk,V (2710)-Wojtaszek,R (2727) Huaian 2016}) 7... Nc6 {[%emt 0:02:47]} 8. Qxc4 {[%emt 0:01:27]} O-O {[%emt 0:01:38]} 9. Bg5 {[%emt 0:01:12]} Qd5 {[%emt 0:03:08]} 10. Qxd5 $146 {[%emt 0:04:18]} ({Predecessor:} 10. Qd3 Ne4 11. Bf4 Rd8 12. Bxc7 Rd7 13. c4 Qf5 14. Be5 {½-½ (14) Parrell Ferrer,R-Albert Garrote,A Valencia 1996}) 10... Nxd5 {[%emt 0:00:06]} 11. Rc1 {[%emt 0:01:00]} f6 {[%emt 0:02:31]} 12. Bd2 {[%emt 0:02:04]} e5 {[%emt 0:03:04]} 13. c4 {[%emt 0:07:12]} Nb6 {[%emt 0:02:50]} 14. c5 {[%emt 0:06:03]} Nd5 {[%emt 0:03:12]} 15. e4 {[%emt 0:03:33]} Nde7 {[%emt 0:04:01]} 16. Bc4+ {[%emt 0:03:41]} Kh8 {[%emt 0:00:14]} 17. d5 {[%emt 0:01:57]} Nd8 {[%emt 0:04:38]} 18. O-O {[%emt 0:01:14]} Bg4 {[%emt 0:02:18]} 19. Ne1 {[%emt 0:02:07]} Ng6 {[%emt 0:04:10]} 20. f3 {[%emt 0:02:56]} Bd7 $18 {[%emt 0:00:44]} 21. Nd3 {[%emt 0:01:02]} b5 {[%emt 0:05:26]} 22. Ba2 {[%emt 0:03:26]} c6 {[%emt 0:02:14]} 23. f4 {[%emt 0:09:32]} exf4 {[%emt 0:03:09]} 24. Nxf4 {[%emt 0:00:15]} Nxf4 {[%emt 0:01:01]} 25. Bxf4 {[%emt 0:04:42]} Re8 {[%emt 0:01:38]} 26. Rce1 {[%emt 0:01:41]} Nb7 {[%emt 0:03:40]} 27. Bd6 {[%emt 0:03:28]} a5 {[%emt 0:02:51]} 28. Rf4 {[%emt 0:04:00]} Nxd6 {[%emt 0:04:25]} 29. cxd6 {[%emt 0:00:11]} cxd5 {[%emt 0:00:40]} 30. Bxd5 {[%emt 0:01:20]} Ra6 {[%emt 0:02:35]} 31. Bf7 {[%emt 0:04:43]} Rc8 {[%emt 0:01:18]} 32. e5 {[%emt 0:04:02]} fxe5 {[%emt 0:00:47]} 33. Rxe5 {[%emt 0:00:28]} Rxd6 {[%emt 0:00:34]} 34. Be8 {[%emt 0:00:39]} h6 {[%emt 0:06:33]} 35. Bxd7 {[%emt 0:00:45]} Rxd7 {[%emt 0:00:07]} 36. Rxb5 {[%emt 0:00:17]} g5 {[%emt 0:02:14]} 37. Rf1 Rdc7 1/2-1/2

[Event "ESTCC U65 2018"]
[Site "Walbrzych"]
[Date "2018.04.20"]
[Round "7"]
[White "Gromark, Per-Olof"]
[Black "Baumbach, Friedrich"]
[Result "0-1"]
[ECO "A06"]
[WhiteElo "1901"]
[BlackElo "2172"]
[Annotator "NA"]
[PlyCount "26"]
[EventDate "2018.??.??"]
[EventCountry "POL"]
[SourceTitle "playchess.com"]
[Source "ChessBase"]
[SourceQuality "1"]
[WhiteTeam "Sweden"]
[BlackTeam "Germany"]
[WhiteTeamCountry "SWE"]
[BlackTeamCountry "GER"]
[TimeControl "40/5400+30:1800+30"]

1. Nf3 {[%emt 0:00:00]} d5 {[%emt 0:00:14]} 2. e3 {[%emt 0:00:00]} Nf6 {[%emt 0:00:15]} 3. c4 {[%emt 0:00:00]} e6 {[%emt 0:00:31]} 4. Nc3 {[%emt 0:00:08]} Be7 {[%emt 0:00:14]} 5. b3 {[%emt 0:00:11]} O-O {[%emt 0:00:18]} 6. Bb2 {[%emt 0:00:03]} b6 {[%emt 0:01:13]} 7. d4 {[%emt 0:01:51]} Ba6 {[%emt 0:01:53]} 8. Bd3 {[%emt 0:01:06]} Nbd7 {[%emt 0:03:44]} 9. cxd5 {[%emt 0:04:31]} Bxd3 {[%emt 0:01:37]} 10. dxe6 {[%emt 0:00:39]} Ba6 {[%emt 0:00:28]} 11. exd7 {[%emt 0:00:06]} Qxd7 {[%emt 0:00:03]} 12. Ne5 {[%emt 0:05:31]} Qf5 $11 {[%emt 0:05:58]} 13. Qf3 {[%emt 0:02:18]} Qc2 {[%emt 0:03:07]} 0-1

[Event "ESTCC U65 2018"]
[Site "Walbrzych"]
[Date "2018.04.20"]
[Round "7"]
[White "Karppinen, Martti"]
[Black "Lehtosaari, Kalevi"]
[Result "0-1"]
[ECO "A30"]
[WhiteElo "1894"]
[BlackElo "1964"]
[Annotator "NA"]
[PlyCount "106"]
[EventDate "2018.??.??"]
[EventCountry "POL"]
[SourceTitle "playchess.com"]
[Source "ChessBase"]
[SourceQuality "1"]
[WhiteTeam "Finland"]
[BlackTeam "Finland"]
[WhiteTeamCountry "FIN"]
[BlackTeamCountry "FIN"]
[TimeControl "40/5400+30:1800+30"]

1. c4 {[%emt 0:03:33]} c5 {[%emt 0:00:09]} 2. g3 {[%emt 0:00:24]} Nc6 {[%emt 0:00:06]} 3. Bg2 {[%emt 0:00:43]} Nf6 {[%emt 0:00:20]} 4. Nf3 {[%emt 0:01:21]} e5 {[%emt 0:01:23]} 5. d3 {[%emt 0:01:49]} d6 {[%emt 0:00:48]} 6. O-O {[%emt 0:01:27]} Be7 {[%emt 0:00:07]} 7. Nc3 {[%emt 0:03:13]} O-O {[%emt 0:00:16]} 8. b3 {[%emt 0:00:46] A34: Symmetrical English: 2 Nc3, lines with ...d5} (8. a3 a5 9. Bg5 Ne8 10. Bd2 Nc7 11. Ne1 Be6 12. Nd5 Rb8 13. Rb1 Bd7 14. Nb6 Bg4 15. Nc2 Ne6 16. Nd5 {½-½ (42) Bacrot,E (2705)-Fressinet,L (2702) Villandry 2012}) 8... Bg4 {[%emt 0:00:34]} 9. Bb2 {[%emt 0:01:39]} Qd7 {[%emt 0:00:26]} 10. Qd2 $146 {[%emt 0:04:50]} ({Predecessor:} 10. a3 h6 11. e3 Qf5 12. Nd5 Nxd5 13. cxd5 Nb8 14. Re1 Qh5 15. Rb1 f5 {0-1 (42) Hirsso,J (1947)-Lehtinen,P (2325) ICCF email 2010}) 10... Rad8 {[%emt 0:01:11]} 11. Rad1 {[%emt 0:02:00]} Rfe8 {[%emt 0:02:50]} 12. Kh1 {[%emt 0:02:25]} Bh3 {[%emt 0:01:14]} 13. Ng5 {[%emt 0:02:14]} Bxg2+ {[%emt 0:00:23]} 14. Kxg2 {[%emt 0:00:03]} h6 {[%emt 0:00:52]} (14... d5 $15) 15. Nge4 {[%emt 0:03:32]} Nd4 {[%emt 0:05:11]} 16. Nxf6+ {[%emt 0:07:13]} Bxf6 {[%emt 0:00:25]} 17. Nd5 {[%emt 0:09:50]} Bg5 {[%emt 0:01:28]} 18. e3 {[%emt 0:08:07]} h5 {[%emt 0:19:44]} 19. Qc3 {[%emt 0:08:49]} Nf5 {[%emt 0:12:51]} 20. Rde1 {[%emt 0:12:54]} Qc6 {[%emt 0:04:19]} 21. Kg1 {[%emt 0:00:49]} Bh6 {[%emt 0:03:23]} 22. f4 {[%emt 0:05:52]} Qd7 {[%emt 0:07:02]} 23. Kf2 {[%emt 0:02:27]} Ne7 {[%emt 0:00:59]} 24. Nxe7+ {[%emt 0:02:55]} Rxe7 {[%emt 0:00:11]} 25. Kg2 {[%emt 0:01:25]} Qg4 {[%emt 0:03:30]} 26. h3 {[%emt 0:02:56]} Qd7 {[%emt 0:02:29]} 27. f5 {[%emt 0:01:14]} d5 {[%emt 0:03:00]} 28. Bc1 {[%emt 0:03:06]} e4 {[%emt 0:07:30]} 29. dxe4 {[%emt 0:02:38]} Rxe4 {[%emt 0:00:11]} 30. Rd1 {[%emt 0:01:23]} d4 {[%emt 0:00:48]} 31. Qd3 {[%emt 0:02:19]} Qc6 {[%emt 0:01:20]} 32. Kh2 {[%emt 0:00:12]} Rde8 {[%emt 0:00:32]} 33. Rde1 {[%emt 0:01:30]} Bxe3 {[%emt 0:00:28]} 34. Bxe3 {[%emt 0:00:27]} Rxe3 {[%emt 0:00:03]} 35. Qd1 {[%emt 0:00:38]} h4 {[%emt 0:03:04]} 36. Rxe3 {[%emt 0:00:21]} Rxe3 {[%emt 0:00:02]} 37. gxh4 {[%emt 0:00:45]} Qe4 {[%emt 0:00:44]} 38. Qg4 {[%emt 0:00:25]} Re2+ {[%emt 0:00:49]} 39. Kg1 {[%emt 0:00:14]} f6 {[%emt 0:03:25]} 40. Qxe4 {[%emt 0:00:00]} Rxe4 {[%emt 0:00:01]} 41. Rf3 {[%emt 0:04:25]} Rxh4 {[%emt 0:00:28]} 42. a3 {[%emt 0:02:29]} Re4 {[%emt 0:01:58]} 43. Kf2 $19 {[%emt 0:00:17]} Kf7 {[%emt 0:00:11]} 44. b4 {[%emt 0:00:41]} b6 {[%emt 0:03:09]} 45. bxc5 {[%emt 0:00:22]} bxc5 {[%emt 0:00:40]} 46. Kg3 {[%emt 0:00:01]} Ke7 {[%emt 0:02:46]} 47. a4 {[%emt 0:02:58]} Kd6 {[%emt 0:00:19]} 48. Kg2 {[%emt 0:03:29]} Re2+ {[%emt 0:00:35]} 49. Kf1 {[%emt 0:00:23]} Ra2 {[%emt 0:00:05]} 50. Rg3 {[%emt 0:00:07]} Ke5 {[%emt 0:00:23]} 51. Rxg7 {[%emt 0:00:17]} Rxa4 {[%emt 0:00:02]} 52. Rc7 {[%emt 0:01:30]} Rxc4 {[%emt 0:00:10]} 53. Rxa7 {[%emt 0:00:13]} Kxf5 {[%emt 0:00:07]} 0-1

[Event "ESTCC U65 2018"]
[Site "Walbrzych"]
[Date "2018.04.20"]
[Round "7"]
[White "Auvinen, Esa"]
[Black "Kauko, Pekka"]
[Result "1-0"]
[ECO "B14"]
[WhiteElo "1888"]
[BlackElo "1961"]
[Annotator "NA"]
[PlyCount "89"]
[EventDate "2018.??.??"]
[EventCountry "POL"]
[SourceTitle "playchess.com"]
[Source "ChessBase"]
[SourceQuality "1"]
[WhiteTeam "Finland"]
[BlackTeam "Finland"]
[WhiteTeamCountry "FIN"]
[BlackTeamCountry "FIN"]
[TimeControl "40/5400+30:1800+30"]

1. e4 {[%emt 0:00:00]} c6 {[%emt 0:00:06]} 2. d4 {[%emt 0:00:00]} d5 {[%emt 0:00:02]} 3. exd5 {[%emt 0:00:07]} cxd5 {[%emt 0:00:03]} 4. c4 {[%emt 0:00:09]} Nf6 {[%emt 0:00:52]} 5. Nc3 {[%emt 0:00:28]} e6 {[%emt 0:00:12]} 6. Nf3 {[%emt 0:00:37]} Be7 {[%emt 0:00:35]} 7. Bd3 {[%emt 0:00:24]} O-O {[%emt 0:00:33]} 8. O-O {[%emt 0:00:21]} a6 {[%emt 0:00:31] B14: Caro-Kann: Panov-Botvinnik Attack with 5...e6 and 5...g6} (8... dxc4 9. Bxc4 Nc6 10. a3 a6 11. Re1 b5 12. Ba2 Bb7 13. Bg5 h6 14. Bh4 Rc8 15. Rc1 Nd5 16. Bg3 Nxc3 17. Rxc3 Na5 18. Rxc8 Qxc8 19. Ne5 Nc6 20. Nxf7 Rxf7 21. Bxe6 {1-0 (37) Rakhmanov,A (2653)-Omar,N (2364) Riadh 2017}) 9. c5 {[%emt 0:04:45]} b6 {[%emt 0:07:16]} 10. cxb6 {[%emt 0:00:14]} Qxb6 {[%emt 0:00:31]} 11. a3 $146 {[%emt 0:07:59]} ({Predecessor:} 11. Na4 Qd6 12. Bd2 Bd7 13. Nc5 {0-1 (52) Hoermann,G (2091)-Laibold,L (1854) Nuremberg 2008}) 11... a5 {[%emt 0:02:50]} 12. Ne5 {[%emt 0:05:09]} Ba6 {[%emt 0:01:25]} 13. a4 {[%emt 0:04:42]} Bxd3 {[%emt 0:02:16]} 14. Qxd3 {[%emt 0:00:25]} Nc6 {[%emt 0:03:45]} 15. Nxc6 {[%emt 0:00:15]} Qxc6 {[%emt 0:00:07]} 16. Nb5 {[%emt 0:02:17]} Rfc8 {[%emt 0:00:54]} 17. Bg5 {[%emt 0:06:09]} Qc2 {[%emt 0:02:34]} 18. Qxc2 {[%emt 0:01:44]} Rxc2 {[%emt 0:00:19]} 19. b3 {[%emt 0:01:56]} h6 {[%emt 0:00:53]} 20. Bf4 {[%emt 0:05:43]} g5 {[%emt 0:09:21]} 21. Bc7 {[%emt 0:00:55]} Ne8 $17 {[%emt 0:06:03]} 22. Rfc1 {[%emt 0:05:16]} Rxc1+ {[%emt 0:00:28]} 23. Rxc1 {[%emt 0:00:01]} Rc8 {[%emt 0:00:10]} 24. Rc3 {[%emt 0:01:15]} Bb4 {[%emt 0:01:26]} 25. Rc6 {[%emt 0:02:16]} f6 {[%emt 0:00:32]} 26. Kf1 {[%emt 0:01:04]} Kf8 {[%emt 0:00:43]} 27. Rxe6 {[%emt 0:07:29]} Kf7 {[%emt 0:00:19]} 28. Rc6 {[%emt 0:00:12]} Ke7 {[%emt 0:01:58]} 29. Bxa5 {[%emt 0:00:27]} Rxc6 {[%emt 0:00:39]} 30. Bxb4+ {[%emt 0:00:07]} Kd7 {[%emt 0:00:31]} 31. Bc5 {[%emt 0:01:03]} Nc7 {[%emt 0:01:18]} 32. Nxc7 {[%emt 0:00:18]} Kxc7 {[%emt 0:00:41]} 33. Ke2 {[%emt 0:01:48]} f5 {[%emt 0:00:50]} 34. b4 {[%emt 0:00:26]} Re6+ {[%emt 0:00:22]} 35. Kd2 {[%emt 0:00:16]} h5 {[%emt 0:00:34]} 36. b5 {[%emt 0:00:57]} f4 {[%emt 0:03:22]} 37. a5 {[%emt 0:02:38]} g4 {[%emt 0:01:00]} 38. a6 {[%emt 0:00:43]} f3 {[%emt 0:00:20]} 39. gxf3 {[%emt 0:00:40]} gxf3 {[%emt 0:00:02]} 40. b6+ {[%emt 0:00:00]} Kb8 {[%emt 0:07:54]} 41. Kd3 {[%emt 0:02:23]} h4 {[%emt 0:01:11]} 42. h3 {[%emt 0:00:25]} Kc8 {[%emt 0:00:46]} 43. Kc3 {[%emt 0:00:53]} Kd7 {[%emt 0:01:49]} 44. a7 {[%emt 0:02:04]} Re8 {[%emt 0:01:03]} 45. b7 1-0

[Event "ESTCC U65 2018"]
[Site "Walbrzych"]
[Date "2018.04.20"]
[Round "7"]
[White "Fitzke, Ulrich"]
[Black "Dalling, Peter"]
[Result "1-0"]
[ECO "A52"]
[WhiteElo "1827"]
[BlackElo "1844"]
[Annotator "NA"]
[PlyCount "143"]
[EventDate "2018.??.??"]
[EventCountry "POL"]
[SourceTitle "playchess.com"]
[Source "ChessBase"]
[SourceQuality "1"]
[WhiteTeam "Germany"]
[BlackTeam "Sweden"]
[WhiteTeamCountry "GER"]
[BlackTeamCountry "SWE"]
[TimeControl "40/5400+30:1800+30"]

1. d4 {[%emt 0:00:00]} Nf6 {[%emt 0:00:11]} 2. c4 {[%emt 0:00:08]} e5 {[%emt 0:00:05]} 3. dxe5 {[%emt 0:01:58]} Ng4 {[%emt 0:00:08]} 4. Nf3 {[%emt 0:00:49]} Nc6 {[%emt 0:00:06]} 5. Nc3 {[%emt 0:01:08]} Ngxe5 {[%emt 0:01:13]} 6. Nxe5 {[%emt 0:01:51]} Nxe5 {[%emt 0:00:08]} 7. e3 {[%emt 0:00:33] A52: Budapest Gambit} d6 {[%emt 0:02:06]} (7... Bb4 8. Bd2 c6 9. Be2 O-O 10. O-O Re8 11. f4 Ng6 12. f5 Ne5 13. f6 g6 14. Qe1 d5 15. cxd5 cxd5 {1-0 (34) Fedoseev,V (2665)-Savchenko,B (2613) Sochi 2016}) 8. Be2 {[%emt 0:00:55]} Be6 {[%emt 0:02:15]} 9. b3 {[%emt 0:00:31]} Be7 {[%emt 0:03:19]} 10. O-O {[%emt 0:01:00]} O-O {[%emt 0:00:13]} 11. Bb2 $146 {[%emt 0:00:26]} ({Predecessor:} 11. f4 Nc6 12. Bb2 Qd7 13. Bf3 f5 {1-0 (43) Andersen,N (1948)-Kjaer,J (1937) Copenhagen 2012}) 11... Qd7 {[%emt 0:05:36]} 12. Nd5 {[%emt 0:01:28]} Rad8 {[%emt 0:02:57]} 13. Qd2 {[%emt 0:02:33]} Rfe8 {[%emt 0:08:15]} 14. Rfd1 {[%emt 0:02:47]} Bxd5 {[%emt 0:03:43]} 15. Qxd5 {[%emt 0:03:25]} c6 {[%emt 0:03:06]} 16. Qd2 {[%emt 0:00:55]} Qf5 {[%emt 0:06:51]} 17. Bd3 {[%emt 0:03:45]} ({White should play} 17. Qd4 $16) 17... Qg4 {[%emt 0:02:11]} 18. Qe2 {[%emt 0:01:29]} Qh4 {[%emt 0:04:53]} 19. Rd2 {[%emt 0:02:52]} Bf6 {[%emt 0:04:47]} 20. Rad1 {[%emt 0:02:44]} Ng4 {[%emt 0:04:00]} 21. h3 {[%emt 0:00:59]} Ne5 {[%emt 0:02:58]} 22. Bb1 {[%emt 0:00:56]} Be7 {[%emt 0:02:08]} 23. c5 {[%emt 0:02:09]} Nd7 {[%emt 0:04:24]} 24. cxd6 {[%emt 0:01:22]} Bf8 {[%emt 0:00:21]} 25. Rd4 {[%emt 0:02:11]} Qh6 {[%emt 0:01:35]} 26. g3 {[%emt 0:08:11]} Qg5 {[%emt 0:05:02]} 27. h4 {[%emt 0:05:24]} Qh6 {[%emt 0:01:24]} 28. Ba3 {[%emt 0:03:43]} Re6 {[%emt 0:02:14]} 29. Bf5 {[%emt 0:02:49]} Ree8 {[%emt 0:01:15]} 30. Qg4 {[%emt 0:06:10]} Nf6 {[%emt 0:00:51]} 31. Qh3 {[%emt 0:01:01]} Nd5 {[%emt 0:03:28]} 32. d7 {[%emt 0:01:46]} Re5 {[%emt 0:01:00]} 33. Bxf8 {[%emt 0:01:24]} Kxf8 {[%emt 0:01:37]} 34. g4 {[%emt 0:01:08]} Qf6 {[%emt 0:02:15]} 35. Bd3 {[%emt 0:08:00]} Qe7 {[%emt 0:02:00]} 36. Bc4 {[%emt 0:01:58]} Nc3 {[%emt 0:01:12]} 37. R1d2 {[%emt 0:02:06]} Ne4 {[%emt 0:00:32]} 38. R2d3 {[%emt 0:01:54]} Nc5 {[%emt 0:00:47]} 39. Rd1 {[%emt 0:00:52]} Ne4 {[%emt 0:00:10]} 40. g5 {[%emt 0:00:00]} Nc3 {[%emt 0:00:49]} 41. Ra1 {[%emt 0:02:29]} b5 {[%emt 0:02:50]} 42. Bf1 {[%emt 0:00:38]} Nd5 {[%emt 0:02:14]} 43. Rc1 {[%emt 0:01:55]} Re6 {[%emt 0:02:50]} 44. Bxb5 {[%emt 0:01:40]} Nxe3 {[%emt 0:01:49]} 45. Rxc6 {[%emt 0:02:37]} Rxc6 {[%emt 0:00:19]} 46. Bxc6 {[%emt 0:00:54]} Qc5 {[%emt 0:02:30]} 47. Qxe3 {[%emt 0:02:36]} Qxc6 {[%emt 0:00:08]} 48. Qd3 {[%emt 0:03:17]} g6 {[%emt 0:00:57]} 49. Rd5 {[%emt 0:02:03]} Qc1+ {[%emt 0:00:38]} 50. Kg2 {[%emt 0:00:36]} Qc6 {[%emt 0:00:17]} 51. Kg3 {[%emt 0:01:10]} Qc7+ {[%emt 0:00:30]} 52. f4 {[%emt 0:00:32]} Qc1 $18 {[%emt 0:00:58]} 53. Qd4 {[%emt 0:03:51]} Qe1+ {[%emt 0:02:57]} 54. Kf3 {[%emt 0:00:51]} Qh1+ {[%emt 0:00:25]} 55. Ke2 {[%emt 0:01:06]} Qg2+ {[%emt 0:01:13]} 56. Kd3 {[%emt 0:01:09]} Qf1+ {[%emt 0:01:53]} 57. Kc3 {[%emt 0:01:45]} Qe1+ {[%emt 0:00:38]} 58. Kc4 {[%emt 0:01:36]} Qc1+ {[%emt 0:00:37]} 59. Kb4 {[%emt 0:03:30]} Rb8+ {[%emt 0:01:36]} 60. Ka4 {[%emt 0:02:26]} Qc6+ 61. Ka3 Qa6+ {[%emt 0:07:31]} 62. Qa4 {[%emt 0:01:40]} Qb6 {[%emt 0:00:06]} 63. Qa5 {[%emt 0:01:43]} Ke7 {[%emt 0:02:12]} 64. Qxb6 {[%emt 0:01:46]} axb6 {[%emt 0:00:06]} 65. d8=Q+ {[%emt 0:00:45]} Rxd8 {[%emt 0:00:06]} 66. Rxd8 {[%emt 0:00:21]} Kxd8 {[%emt 0:00:01]} 67. Kb4 {[%emt 0:00:09]} Kc7 {[%emt 0:00:17]} 68. Kb5 {[%emt 0:00:14]} Kb7 {[%emt 0:00:05]} 69. b4 {[%emt 0:00:27]} Kc7 {[%emt 0:00:06]} 70. Kc4 {[%emt 0:00:22]} Kc6 {[%emt 0:00:09]} 71. a4 {[%emt 0:00:27]} Kc7 {[%emt 0:00:48]} 72. Kd5 {[%emt 0:00:17]} 1-0

[Event "ESTCC U65 2018"]
[Site "Walbrzych"]
[Date "2018.04.20"]
[Round "7"]
[White "Andersson, Kenneth"]
[Black "Fernengel, Rudolf"]
[Result "0-1"]
[ECO "A05"]
[WhiteElo "1763"]
[BlackElo "1789"]
[Annotator "NA"]
[PlyCount "48"]
[EventDate "2018.??.??"]
[EventCountry "POL"]
[SourceTitle "playchess.com"]
[Source "ChessBase"]
[SourceQuality "1"]
[WhiteTeam "Sweden"]
[BlackTeam "Germany"]
[WhiteTeamCountry "SWE"]
[BlackTeamCountry "GER"]
[TimeControl "40/5400+30:1800+30"]

1. Nf3 {[%emt 0:00:00]} Nf6 {[%emt 0:00:06]} 2. d4 {[%emt 0:00:00]} e6 {[%emt 0:00:31]} 3. g3 {[%emt 0:00:11]} d5 {[%emt 0:00:43]} 4. Bg2 {[%emt 0:00:19]} Nbd7 {[%emt 0:01:07]} 5. Nc3 {[%emt 0:01:26]} Bb4 {[%emt 0:00:48]} 6. O-O {[%emt 0:00:25]} O-O {[%emt 0:00:29]} 7. Bd2 {[%emt 0:04:09]} c6 {[%emt 0:05:29]} 8. Re1 {[%emt 0:02:53]} Re8 {[%emt 0:06:48]} 9. a3 {[%emt 0:02:53]} Ba5 {[%emt 0:01:13]} 10. b4 {[%emt 0:01:07]} Bc7 {[%emt 0:00:42]} 11. e3 {[%emt 0:02:48]} e5 {[%emt 0:06:07]} 12. dxe5 Nxe5 13. Nxe5 {[%emt 0:06:33]} Bxe5 {[%emt 0:00:50]} 14. Rb1 {[%emt 0:00:50]} Bg4 {[%emt 0:07:08]} 15. Bf3 {[%emt 0:03:35]} Qd7 {[%emt 0:05:45]} 16. Bxg4 {[%emt 0:02:24]} Nxg4 {[%emt 0:01:00]} 17. Qf3 {[%emt 0:02:17]} Bc7 {[%emt 0:01:41]} 18. Rbd1 {[%emt 0:01:29]} Ne5 {[%emt 0:01:20]} 19. Qg2 {[%emt 0:01:34]} Qf5 {[%emt 0:02:06]} 20. f4 {[%emt 0:05:17]} Nc4 {[%emt 0:00:56]} 21. Bc1 {[%emt 0:00:36]} Bb6 {[%emt 0:01:38]} 22. Kf2 {[%emt 0:03:52]} Qxc2+ {[%emt 0:01:09]} 23. Ne2 {[%emt 0:05:16]} Bxe3+ {[%emt 0:02:16]} 24. Kf3 {[%emt 0:04:11]} Qe4+ {[%emt 0:00:42]} 0-1

[Event "ESTCC U65 2018"]
[Site "Walbrzych"]
[Date "2018.04.20"]
[Round "7"]
[White "Heikkila, Raine"]
[Black "Alkkiomaki, Jyrki"]
[Result "0-1"]
[ECO "D00"]
[WhiteElo "1705"]
[BlackElo "1967"]
[Annotator "NA"]
[PlyCount "86"]
[EventDate "2018.??.??"]
[EventCountry "POL"]
[SourceTitle "playchess.com"]
[Source "ChessBase"]
[SourceQuality "1"]
[WhiteTeam "Finland"]
[BlackTeam "Finland"]
[WhiteTeamCountry "FIN"]
[BlackTeamCountry "FIN"]
[TimeControl "40/5400+30:1800+30"]

1. d4 {[%emt 0:00:00]} d5 {[%emt 0:00:10]} 2. Nc3 {[%emt 0:00:00]} Nf6 {[%emt 0:00:21]} 3. Nf3 {[%emt 0:00:00]} e6 {[%emt 0:00:18]} 4. a3 {[%emt 0:00:12]} c5 {[%emt 0:00:31] D00: 1 d4 d5: Unusual lines} 5. Bg5 {[%emt 0:00:22]} Nc6 {[%emt 0:01:00]} 6. e3 {[%emt 0:00:07]} Be7 {[%emt 0:01:07]} 7. dxc5 {[%emt 0:00:15]} Bxc5 {[%emt 0:00:06]} 8. Bb5 $146 {[%emt 0:00:15]} ({Predecessor:} 8. Bd3 O-O 9. O-O Be7 10. e4 d4 11. Na2 e5 12. Nb4 Nd7 {1-0 (36) Rapport,R (2693)-Radjabov,T (2739) Reykjavik 2015}) 8... Bd7 {[%emt 0:01:15]} 9. O-O {[%emt 0:00:15]} Be7 {[%emt 0:01:16]} 10. Ne2 {[%emt 0:00:16]} a6 {[%emt 0:00:40]} 11. Ba4 {[%emt 0:00:11]} O-O {[%emt 0:00:16]} 12. c3 {[%emt 0:00:13]} Rc8 {[%emt 0:10:02]} 13. Bc2 {[%emt 0:00:17]} Re8 {[%emt 0:07:56]} 14. h3 {[%emt 0:00:54]} Qc7 {[%emt 0:05:10]} 15. Bf4 {[%emt 0:02:00]} e5 {[%emt 0:01:09]} 16. Bg5 {[%emt 0:00:18]} Be6 {[%emt 0:06:09]} 17. Rc1 {[%emt 0:00:41]} Na5 {[%emt 0:04:09]} 18. Bh4 {[%emt 0:05:41]} Nc4 {[%emt 0:01:47]} 19. Rb1 {[%emt 0:00:49]} h6 {[%emt 0:06:38]} 20. Bg3 {[%emt 0:00:11]} Bd6 {[%emt 0:03:15]} 21. Nd2 {[%emt 0:01:18]} b5 {[%emt 0:03:06]} 22. Nxc4 {[%emt 0:01:15]} bxc4 {[%emt 0:02:57]} 23. Bh4 {[%emt 0:00:39]} Be7 {[%emt 0:04:28]} 24. Bg3 {[%emt 0:00:12]} Nd7 {[%emt 0:01:06]} (24... Ne4 $15) 25. Ba4 {[%emt 0:00:16]} Red8 {[%emt 0:00:49]} 26. Nd4 {[%emt 0:00:35]} Nc5 {[%emt 0:02:07]} 27. Nxe6 {[%emt 0:00:25]} Nxe6 $15 {[%emt 0:00:24]} 28. Bc2 {[%emt 0:01:01]} g6 {[%emt 0:05:46]} 29. Qg4 {[%emt 0:03:47]} h5 {[%emt 0:04:00]} 30. Qe2 {[%emt 0:00:26]} Bf6 {[%emt 0:00:18]} 31. Rfd1 {[%emt 0:00:42]} Qc6 {[%emt 0:01:34]} 32. Rd2 {[%emt 0:00:57]} d4 {[%emt 0:00:44]} 33. exd4 {[%emt 0:00:25]} exd4 {[%emt 0:00:16]} 34. Be4 {[%emt 0:00:09]} Qc5 {[%emt 0:00:50]} 35. Bxg6 {[%emt 0:02:11]} dxc3 {[%emt 0:05:41]} 36. Rxd8+ {[%emt 0:00:13]} Nxd8 {[%emt 0:01:59]} 37. Bxh5 {[%emt 0:00:47]} cxb2 {[%emt 0:00:52]} 38. Bg4 {[%emt 0:06:16]} c3 {[%emt 0:02:54]} 39. Qc2 {[%emt 0:01:59]} Rc6 {[%emt 0:01:36]} 40. a4 {[%emt 0:00:00]} Ne6 {[%emt 0:00:50]} 41. Bxe6 {[%emt 0:03:43]} Rxe6 {[%emt 0:00:34]} 42. Kh2 {[%emt 0:00:16]} Qc4 {[%emt 0:01:25]} 43. f4 {[%emt 0:03:29]} Qe4 {[%emt 0:01:10]} 0-1